[Event "Titled Tuesday Blitz April 18 Early 2023"]
[White "Narayanan.S.L"]
[Black "Harsh Suresh"]
[WhiteFideId "5058422"]
[BlackFideId "45018464"]
[WhiteElo "2547"]
[BlackElo "2227"]
[Result "1-0"]
[Round "11"]
[TimeControl "180+2"]
[Date "2023.04.18"]
[WhiteClock "0:00:01"]
[BlackClock "0:00:16"]

1. c4 {[%clk 0:02:59]}  g6 {[%clk 0:02:58]} 2. g3 {[%clk 0:02:59]}  Bg7 {[%clk 0:02:58]} 3. Bg2 {[%clk 0:03:00]}  e6 {[%clk 0:02:59]} 4. Nc3 {[%clk 0:03:00]}  Ne7 {[%clk 0:02:59]} 5. Nf3 {[%clk 0:03:01]}  O-O {[%clk 0:02:59]} 6. O-O {[%clk 0:03:02]}  d5 {[%clk 0:02:59]} 7. d4 {[%clk 0:03:02]}  dxc4 {[%clk 0:02:50]} 8. Qa4 {[%clk 0:03:01]}  Bd7 {[%clk 0:02:45]} 9. Qxc4 {[%clk 0:03:01]}  Bc6 {[%clk 0:02:46]} 10. e4 {[%clk 0:03:00]}  Nd7 {[%clk 0:02:45]} 11. Rd1 {[%clk 0:03:00]}  Nb6 {[%clk 0:02:45]} 12. Qe2 {[%clk 0:03:00]}  Qe8 {[%clk 0:02:40]} 13. b3 {[%clk 0:02:57]}  Rd8 {[%clk 0:02:37]} 14. Ba3 {[%clk 0:02:56]}  Rd7 {[%clk 0:02:32]} 15. Ne5 {[%clk 0:02:54]}  Bxe5 {[%clk 0:02:23]} 16. dxe5 {[%clk 0:02:55]}  Nbc8 {[%clk 0:02:24]} 17. Rxd7 {[%clk 0:02:54]}  Bxd7 {[%clk 0:02:23]} 18. Rd1 {[%clk 0:02:55]}  b6 {[%clk 0:02:20]} 19. f4 {[%clk 0:02:53]}  c5 {[%clk 0:02:20]} 20. b4 {[%clk 0:02:50]}  cxb4 {[%clk 0:02:11]} 21. Bxb4 {[%clk 0:02:49]}  a5 {[%clk 0:02:11]} 22. Ba3 {[%clk 0:02:49]}  b5 {[%clk 0:02:11]} 23. Bc5 {[%clk 0:02:50]}  b4 {[%clk 0:02:12]} 24. Nb1 {[%clk 0:02:48]}  Bb5 {[%clk 0:02:12]} 25. Qf2 {[%clk 0:02:46]}  Qc6 {[%clk 0:02:11]} 26. h4 {[%clk 0:02:41]}  Qc7 {[%clk 0:02:06]} 27. Bd6 {[%clk 0:02:40]}  Qc6 {[%clk 0:02:02]} 28. f5 {[%clk 0:02:40]}  Ba4 {[%clk 0:01:51]} 29. Bxe7 {[%clk 0:02:13]}  Nxe7 {[%clk 0:01:51]} 30. Rf1 {[%clk 0:02:14]}  Qc2 {[%clk 0:01:47]} 31. Qa7 {[%clk 0:01:43]}  Nc6 {[%clk 0:01:41]} 32. Qc7 {[%clk 0:01:43]}  Qc5+ {[%clk 0:01:38]} 33. Kh2 {[%clk 0:01:44]}  Qxe5 {[%clk 0:01:39]} 34. Qb7 {[%clk 0:01:44]}  Nd4 {[%clk 0:01:34]} 35. Nd2 {[%clk 0:01:43]}  Ne2 {[%clk 0:01:33]} 36. Rf3 {[%clk 0:01:38]}  exf5 {[%clk 0:01:21]} 37. exf5 {[%clk 0:01:38]}  Nd4 {[%clk 0:01:21]} 38. Rf4 {[%clk 0:01:32]}  Nxf5 {[%clk 0:01:19]} 39. Ne4 {[%clk 0:01:33]}  Nd6 {[%clk 0:01:15]} 40. Qc7 {[%clk 0:01:30]}  f5 {[%clk 0:00:58]} 41. Nxd6 {[%clk 0:01:29]}  Rf6 {[%clk 0:00:52]} 42. Qc4+ {[%clk 0:01:17]}  Kg7 {[%clk 0:00:51]} 43. Qc7+ {[%clk 0:01:16]}  Kg8 {[%clk 0:00:49]} 44. Qb8+ {[%clk 0:01:08]}  Rf8 {[%clk 0:00:36]} 45. Qb6 {[%clk 0:01:05]}  Rf6 {[%clk 0:00:35]} 46. Nc4 {[%clk 0:01:06]}  Rxb6 {[%clk 0:00:29]} 47. Nxe5 {[%clk 0:01:05]}  Bb5 {[%clk 0:00:24]} 48. Rd4 {[%clk 0:01:00]}  Kg7 {[%clk 0:00:23]} 49. Bd5 {[%clk 0:00:55]}  Rd6 {[%clk 0:00:20]} 50. Nf3 {[%clk 0:00:52]}  Bc6 {[%clk 0:00:18]} 51. Bxc6 {[%clk 0:00:52]}  Rxc6 {[%clk 0:00:19]} 52. Rd2 {[%clk 0:00:49]}  a4 {[%clk 0:00:18]} 53. Kg2 {[%clk 0:00:47]}  Rc3 {[%clk 0:00:15]} 54. Nd4 {[%clk 0:00:45]}  h6 {[%clk 0:00:13]} 55. Rb2 {[%clk 0:00:46]}  Ra3 {[%clk 0:00:13]} 56. Nc2 {[%clk 0:00:45]}  Rc3 {[%clk 0:00:11]} 57. Nxb4 {[%clk 0:00:45]}  g5 {[%clk 0:00:11]} 58. hxg5 {[%clk 0:00:44]}  hxg5 {[%clk 0:00:12]} 59. Rc2 {[%clk 0:00:44]}  Ra3 {[%clk 0:00:11]} 60. Nd5 {[%clk 0:00:42]}  Kg6 {[%clk 0:00:10]} 61. Rf2 {[%clk 0:00:42]}  Kh5 {[%clk 0:00:09]} 62. Ne7 {[%clk 0:00:36]}  f4 {[%clk 0:00:07]} 63. gxf4 {[%clk 0:00:37]}  gxf4 {[%clk 0:00:08]} 64. Nd5 {[%clk 0:00:37]}  f3+ {[%clk 0:00:06]} 65. Kg3 {[%clk 0:00:34]}  Kg5 {[%clk 0:00:06]} 66. Nb4 {[%clk 0:00:35]}  Rc3 {[%clk 0:00:05]} 67. Rxf3 {[%clk 0:00:35]}  Rc4 {[%clk 0:00:06]} 68. a3 {[%clk 0:00:35]}  Rc1 {[%clk 0:00:06]} 69. Kf2 {[%clk 0:00:35]}  Rb1 {[%clk 0:00:05]} 70. Ke2 {[%clk 0:00:34]}  Rb2+ {[%clk 0:00:06]} 71. Kd1 {[%clk 0:00:35]}  Kg4 {[%clk 0:00:06]} 72. Rc3 {[%clk 0:00:34]}  Kf5 {[%clk 0:00:06]} 73. Kc1 {[%clk 0:00:34]}  Rf2 {[%clk 0:00:06]} 74. Nc2 {[%clk 0:00:34]}  Ke4 {[%clk 0:00:06]} 75. Kb2 {[%clk 0:00:33]}  Kd5 {[%clk 0:00:07]} 76. Rc8 {[%clk 0:00:33]}  Rh2 {[%clk 0:00:06]} 77. Ra8 {[%clk 0:00:33]}  Kc4 {[%clk 0:00:07]} 78. Rxa4+ {[%clk 0:00:31]}  Kd3 {[%clk 0:00:07]} 79. Rd4+ {[%clk 0:00:32]}  Ke2 {[%clk 0:00:08]} 80. Rd8 {[%clk 0:00:33]}  Kf3 {[%clk 0:00:08]} 81. a4 {[%clk 0:00:33]}  Rh3 {[%clk 0:00:07]} 82. Rd3+ {[%clk 0:00:32]}  Kg2 {[%clk 0:00:08]} 83. Rxh3 {[%clk 0:00:32]}  Kxh3 {[%clk 0:00:09]} 84. a5 {[%clk 0:00:33]}  Kg3 {[%clk 0:00:10]} 85. a6 {[%clk 0:00:33]}  Kg4 {[%clk 0:00:11]} 86. a7 {[%clk 0:00:34]}  Kf4 {[%clk 0:00:12]} 87. a8=Q {[%clk 0:00:34]}  Ke5 {[%clk 0:00:12]} 88. Qf3 {[%clk 0:00:34]}  Kd6 {[%clk 0:00:12]} 89. Qf5 {[%clk 0:00:34]}  Kc6 {[%clk 0:00:12]} 90. Qe5 {[%clk 0:00:34]}  Kd7 {[%clk 0:00:12]} 91. Qf6 {[%clk 0:00:34]}  Kc7 {[%clk 0:00:12]} 92. Qe6 {[%clk 0:00:35]}  Kb7 {[%clk 0:00:12]} 93. Qd6 {[%clk 0:00:35]}  Ka7 {[%clk 0:00:12]} 94. Kb3 {[%clk 0:00:35]}  Kb7 {[%clk 0:00:12]} 95. Kb4 {[%clk 0:00:36]}  Ka7 {[%clk 0:00:13]} 96. Kb5 {[%clk 0:00:36]}  Kb7 {[%clk 0:00:14]} 97. Qe7+ {[%clk 0:00:37]}  Ka8 {[%clk 0:00:15]} 98. Kb6 {[%clk 0:00:17]}  Kb8 {[%clk 0:00:16]} 99. Qe8# {[%clk 0:00:01]} 1-0


[Site "https://www.chess.com"]

[Event "Titled Tuesday Blitz April 18 Early 2023"]
[White "Srihari L R"]
[Black "Zhigalko_Sergei"]
[WhiteFideId "46617116"]
[WhiteElo "2334"]
[BlackElo "2922"]
[Result "1-0"]
[Round "11"]
[TimeControl "180+2"]
[Date "2023.04.18"]
[WhiteClock "0:00:52"]
[BlackClock "0:00:02"]

1. Nf3 {[%clk 0:03:00]}  d5 {[%clk 0:03:00]} 2. d4 {[%clk 0:02:58]}  e6 {[%clk 0:03:00]} 3. c4 {[%clk 0:02:58]}  c6 {[%clk 0:03:00]} 4. Nc3 {[%clk 0:02:53]}  dxc4 {[%clk 0:03:00]} 5. a4 {[%clk 0:02:53]}  Bb4 {[%clk 0:02:59]} 6. e4 {[%clk 0:02:52]}  b5 {[%clk 0:03:00]} 7. Be2 {[%clk 0:02:51]}  Bb7 {[%clk 0:03:00]} 8. O-O {[%clk 0:02:50]}  a6 {[%clk 0:03:00]} 9. e5 {[%clk 0:02:45]}  Nd7 {[%clk 0:02:17]} 10. Ng5 {[%clk 0:02:43]}  Nh6 {[%clk 0:02:07]} 11. Nge4 {[%clk 0:02:17]}  Nf5 {[%clk 0:01:40]} 12. g4 {[%clk 0:02:17]}  Nh6 {[%clk 0:01:18]} 13. Bg5 {[%clk 0:02:16]}  Qc7 {[%clk 0:01:09]} 14. Na2 {[%clk 0:02:15]}  Bf8 {[%clk 0:01:08]} 15. Bf3 {[%clk 0:02:01]}  Ng8 {[%clk 0:01:06]} 16. Bf4 {[%clk 0:01:57]}  Nb6 {[%clk 0:00:49]} 17. b3 {[%clk 0:01:47]}  Nd5 {[%clk 0:00:47]} 18. Bg3 {[%clk 0:01:46]}  c3 {[%clk 0:00:33]} 19. Naxc3 {[%clk 0:01:40]}  Nxc3 {[%clk 0:00:34]} 20. Nxc3 {[%clk 0:01:40]}  Ne7 {[%clk 0:00:35]} 21. axb5 {[%clk 0:01:41]}  axb5 {[%clk 0:00:25]} 22. Rxa8+ {[%clk 0:01:33]}  Bxa8 {[%clk 0:00:25]} 23. Nxb5 {[%clk 0:01:33]}  cxb5 {[%clk 0:00:22]} 24. Bxa8 {[%clk 0:01:34]}  h5 {[%clk 0:00:13]} 25. d5 {[%clk 0:01:14]}  exd5 {[%clk 0:00:12]} 26. Bxd5 {[%clk 0:01:13]}  h4 {[%clk 0:00:02]} 27. Bf4 {[%clk 0:01:13]}  Ng6 {[%clk 0:00:03]} 28. Be3 {[%clk 0:01:08]}  Be7 {[%clk 0:00:03]} 29. e6 {[%clk 0:01:03]}  f6 {[%clk 0:00:03]} 30. Qd3 {[%clk 0:01:02]}  Ne5 {[%clk 0:00:01]} 31. Qxb5+ {[%clk 0:01:02]}  Kf8 {[%clk 0:00:02]} 32. Rc1 {[%clk 0:01:03]}  Qd8 {[%clk 0:00:02]} 33. Bb7 {[%clk 0:00:57]}  g5 {[%clk 0:00:01]} 34. Rc8 {[%clk 0:00:57]}  Kg7 {[%clk 0:00:02]} 35. Rxd8 {[%clk 0:00:57]}  Rxd8 {[%clk 0:00:03]} 36. f4 {[%clk 0:00:53]}  Rd1+ {[%clk 0:00:02]} 37. Kf2 {[%clk 0:00:53]}  Nxg4+ {[%clk 0:00:03]} 38. Ke2 {[%clk 0:00:53]}  Rh1 {[%clk 0:00:02]} 39. Bxh1 {[%clk 0:00:52]} 1-0


[Site "https://www.chess.com"]

[Event "Titled Tuesday Blitz April 18 Early 2023"]
[White "Bocharov, Dmitry"]
[Black "Paravyan, David"]
[WhiteFideId "4138716"]
[BlackFideId "4194985"]
[WhiteElo "2469"]
[BlackElo "2563"]
[Result "1-0"]
[Round "11"]
[TimeControl "180+2"]
[Date "2023.04.18"]
[WhiteClock "0:00:23"]
[BlackClock "0:00:04"]

1. c4 {[%clk 0:03:00]}  c5 {[%clk 0:02:59]} 2. g3 {[%clk 0:02:56]}  g6 {[%clk 0:02:58]} 3. Bg2 {[%clk 0:02:56]}  Bg7 {[%clk 0:02:59]} 4. Nc3 {[%clk 0:02:56]}  Nc6 {[%clk 0:02:59]} 5. Nf3 {[%clk 0:02:56]}  e5 {[%clk 0:02:59]} 6. d3 {[%clk 0:02:51]}  Nge7 {[%clk 0:02:58]} 7. Nd2 {[%clk 0:02:52]}  h5 {[%clk 0:02:56]} 8. h4 {[%clk 0:02:50]}  d6 {[%clk 0:02:56]} 9. Nf1 {[%clk 0:02:50]}  Be6 {[%clk 0:02:53]} 10. Ne3 {[%clk 0:02:50]}  Bh6 {[%clk 0:02:34]} 11. Rb1 {[%clk 0:02:45]}  Kf8 {[%clk 0:02:33]} 12. a3 {[%clk 0:02:45]}  a5 {[%clk 0:02:32]} 13. O-O {[%clk 0:02:39]}  Kg7 {[%clk 0:02:32]} 14. Ned5 {[%clk 0:02:38]}  Bxc1 {[%clk 0:02:31]} 15. Qxc1 {[%clk 0:02:38]}  Rb8 {[%clk 0:02:18]} 16. Qd2 {[%clk 0:02:27]}  Qd7 {[%clk 0:01:55]} 17. Qg5 {[%clk 0:02:19]}  Bxd5 {[%clk 0:01:48]} 18. Bxd5 {[%clk 0:02:06]}  f6 {[%clk 0:01:45]} 19. Qd2 {[%clk 0:02:05]}  Nd4 {[%clk 0:01:42]} 20. Bg2 {[%clk 0:02:03]}  Ne6 {[%clk 0:00:36]} 21. b4 {[%clk 0:02:00]}  axb4 {[%clk 0:00:36]} 22. axb4 {[%clk 0:01:59]}  g5 {[%clk 0:00:36]} 23. bxc5 {[%clk 0:01:56]}  dxc5 {[%clk 0:00:30]} 24. hxg5 {[%clk 0:01:51]}  Nxg5 {[%clk 0:00:28]} 25. f4 {[%clk 0:01:36]}  exf4 {[%clk 0:00:28]} 26. gxf4 {[%clk 0:01:36]}  Ne6 {[%clk 0:00:24]} 27. Kh2 {[%clk 0:01:30]}  Nf5 {[%clk 0:00:23]} 28. Bh3 {[%clk 0:01:27]}  Nh6 {[%clk 0:00:23]} 29. Nd5 {[%clk 0:01:04]}  Ng4+ {[%clk 0:00:23]} 30. Bxg4 {[%clk 0:01:03]}  hxg4+ {[%clk 0:00:22]} 31. Kg2 {[%clk 0:01:02]}  Nc7 {[%clk 0:00:20]} 32. e4 {[%clk 0:00:57]}  b5 {[%clk 0:00:18]} 33. Nxc7 {[%clk 0:00:45]}  Qxc7 {[%clk 0:00:19]} 34. Rxb5 {[%clk 0:00:45]}  Rxb5 {[%clk 0:00:18]} 35. cxb5 {[%clk 0:00:45]}  Qf7 {[%clk 0:00:16]} 36. Rh1 {[%clk 0:00:44]}  Rxh1 {[%clk 0:00:14]} 37. Kxh1 {[%clk 0:00:44]}  Qb3 {[%clk 0:00:14]} 38. Qe2 {[%clk 0:00:43]}  Qxb5 {[%clk 0:00:05]} 39. Qxg4+ {[%clk 0:00:41]}  Kf7 {[%clk 0:00:06]} 40. Qe2 {[%clk 0:00:40]}  Qb8 {[%clk 0:00:03]} 41. Qe3 {[%clk 0:00:40]}  Qb3 {[%clk 0:00:02]} 42. Kg2 {[%clk 0:00:30]}  c4 {[%clk 0:00:02]} 43. Qa7+ {[%clk 0:00:30]}  Kg6 {[%clk 0:00:03]} 44. f5+ {[%clk 0:00:29]}  Kh6 {[%clk 0:00:04]} 45. Qe3+ {[%clk 0:00:28]}  Kg7 {[%clk 0:00:04]} 46. Qg3+ {[%clk 0:00:28]}  Kf8 {[%clk 0:00:03]} 47. Qd6+ {[%clk 0:00:28]}  Kg7 {[%clk 0:00:03]} 48. Qe7+ {[%clk 0:00:28]}  Kg8 {[%clk 0:00:02]} 49. Qe8+ {[%clk 0:00:28]}  Kh7 {[%clk 0:00:02]} 50. Qg6+ {[%clk 0:00:29]}  Kh8 {[%clk 0:00:02]} 51. Qxf6+ {[%clk 0:00:29]}  Kh7 {[%clk 0:00:03]} 52. Qf7+ {[%clk 0:00:29]}  Kh8 {[%clk 0:00:04]} 53. Qxc4 {[%clk 0:00:29]}  Qb2+ {[%clk 0:00:04]} 54. Kf3 {[%clk 0:00:29]}  Qa1 {[%clk 0:00:05]} 55. Ke2 {[%clk 0:00:24]}  Qb2+ {[%clk 0:00:05]} 56. Ke3 {[%clk 0:00:24]}  Qg2 {[%clk 0:00:03]} 57. Qc8+ {[%clk 0:00:22]}  Kh7 {[%clk 0:00:03]} 58. Qd7+ {[%clk 0:00:23]}  Kh8 {[%clk 0:00:04]} 59. Qe8+ {[%clk 0:00:23]} 1-0


[Site "https://www.chess.com"]

[Event "Titled Tuesday Blitz April 18 Early 2023"]
[White "Rustemov, Alexander"]
[Black "Han, Yichen"]
[WhiteFideId "4119002"]
[BlackFideId "1054430"]
[WhiteElo "2877"]
[BlackElo "2342"]
[Result "1-0"]
[Round "11"]
[TimeControl "180+2"]
[Date "2023.04.18"]
[WhiteClock "0:00:19"]
[BlackClock "0:00:04"]

1. d4 {[%clk 0:03:00]}  d5 {[%clk 0:03:00]} 2. c4 {[%clk 0:03:00]}  c6 {[%clk 0:03:00]} 3. Nc3 {[%clk 0:03:00]}  Nf6 {[%clk 0:03:00]} 4. e3 {[%clk 0:03:00]}  Bf5 {[%clk 0:02:57]} 5. cxd5 {[%clk 0:03:00]}  cxd5 {[%clk 0:02:58]} 6. Qb3 {[%clk 0:03:00]}  Bc8 {[%clk 0:02:58]} 7. Nf3 {[%clk 0:02:59]}  Nc6 {[%clk 0:02:58]} 8. Ne5 {[%clk 0:02:57]}  e6 {[%clk 0:02:49]} 9. f4 {[%clk 0:02:57]}  Be7 {[%clk 0:02:45]} 10. Bd3 {[%clk 0:02:57]}  O-O {[%clk 0:02:45]} 11. Bd2 {[%clk 0:02:57]}  Ne8 {[%clk 0:02:41]} 12. O-O {[%clk 0:02:53]}  Nd6 {[%clk 0:02:37]} 13. Nxc6 {[%clk 0:02:48]}  bxc6 {[%clk 0:02:37]} 14. Qc2 {[%clk 0:02:49]}  f5 {[%clk 0:02:34]} 15. Na4 {[%clk 0:02:48]}  Bd7 {[%clk 0:02:30]} 16. Rac1 {[%clk 0:02:42]}  Ne4 {[%clk 0:02:21]} 17. Bxe4 {[%clk 0:02:26]}  fxe4 {[%clk 0:02:21]} 18. Nc5 {[%clk 0:02:22]}  Rb8 {[%clk 0:02:16]} 19. b3 {[%clk 0:02:13]}  Bxc5 {[%clk 0:02:02]} 20. Qxc5 {[%clk 0:02:13]}  Qb6 {[%clk 0:02:02]} 21. Ba5 {[%clk 0:02:00]}  Qxc5 {[%clk 0:02:02]} 22. Rxc5 {[%clk 0:02:00]}  Rb5 {[%clk 0:01:57]} 23. Rfc1 {[%clk 0:02:00]}  Rfb8 {[%clk 0:01:55]} 24. Bc7 {[%clk 0:01:57]}  R8b7 {[%clk 0:01:51]} 25. Be5 {[%clk 0:01:52]}  a5 {[%clk 0:01:49]} 26. Rxb5 {[%clk 0:01:48]}  Rxb5 {[%clk 0:01:50]} 27. Kf2 {[%clk 0:01:44]}  a4 {[%clk 0:01:41]} 28. Rc3 {[%clk 0:01:40]}  axb3 {[%clk 0:01:40]} 29. axb3 {[%clk 0:01:40]}  Kf7 {[%clk 0:01:36]} 30. Bd6 {[%clk 0:01:38]}  Rb7 {[%clk 0:01:33]} 31. Bc5 {[%clk 0:01:36]}  Rb8 {[%clk 0:01:30]} 32. Ke2 {[%clk 0:01:24]}  Bc8 {[%clk 0:01:28]} 33. Kd2 {[%clk 0:01:23]}  Ba6 {[%clk 0:01:26]} 34. Kc1 {[%clk 0:01:14]}  Bb5 {[%clk 0:01:22]} 35. Rc2 {[%clk 0:01:10]}  Ra8 {[%clk 0:01:22]} 36. Kb2 {[%clk 0:01:10]}  h5 {[%clk 0:01:17]} 37. g3 {[%clk 0:01:09]}  Kg6 {[%clk 0:01:16]} 38. h3 {[%clk 0:01:09]}  Kf5 {[%clk 0:01:16]} 39. Rg2 {[%clk 0:01:08]}  Kf6 {[%clk 0:01:09]} 40. Rg1 {[%clk 0:01:07]}  Rb8 {[%clk 0:01:06]} 41. Kc3 {[%clk 0:01:06]}  Ra8 {[%clk 0:01:06]} 42. g4 {[%clk 0:01:04]}  hxg4 {[%clk 0:01:04]} 43. hxg4 {[%clk 0:01:04]}  Ra2 {[%clk 0:01:03]} 44. g5+ {[%clk 0:01:03]}  Kg6 {[%clk 0:01:02]} 45. Re1 {[%clk 0:00:58]}  Kf5 {[%clk 0:00:54]} 46. Bd6 {[%clk 0:00:54]}  Kg4 {[%clk 0:00:49]} 47. g6 {[%clk 0:00:54]}  Kf3 {[%clk 0:00:42]} 48. Be5 {[%clk 0:00:42]}  Rg2 {[%clk 0:00:42]} 49. Bxg7 {[%clk 0:00:41]}  Rxg6 {[%clk 0:00:42]} 50. Be5 {[%clk 0:00:41]}  Rg2 {[%clk 0:00:29]} 51. f5 {[%clk 0:00:39]}  exf5 {[%clk 0:00:27]} 52. Bf4 {[%clk 0:00:39]}  Ra2 {[%clk 0:00:23]} 53. Rh1 {[%clk 0:00:37]}  Ra1 {[%clk 0:00:15]} 54. Rh3+ {[%clk 0:00:37]}  Ke2 {[%clk 0:00:12]} 55. Rh5 {[%clk 0:00:34]}  Rc1+ {[%clk 0:00:10]} 56. Kb4 {[%clk 0:00:34]}  Kd3 {[%clk 0:00:09]} 57. Rxf5 {[%clk 0:00:33]}  Rb1 {[%clk 0:00:09]} 58. Rf6 {[%clk 0:00:28]}  Kc2 {[%clk 0:00:08]} 59. Kc5 {[%clk 0:00:27]}  Rxb3 {[%clk 0:00:08]} 60. Rxc6 {[%clk 0:00:24]}  Bxc6 {[%clk 0:00:07]} 61. Kxc6 {[%clk 0:00:25]}  Kd3 {[%clk 0:00:05]} 62. Kxd5 {[%clk 0:00:25]}  Ra3 {[%clk 0:00:04]} 63. Ke6 {[%clk 0:00:25]}  Kc4 {[%clk 0:00:03]} 64. d5 {[%clk 0:00:25]}  Ra6+ {[%clk 0:00:02]} 65. d6 {[%clk 0:00:26]}  Kc5 {[%clk 0:00:02]} 66. Ke7 {[%clk 0:00:26]}  Kc6 {[%clk 0:00:02]} 67. Ke6 {[%clk 0:00:22]}  Ra7 {[%clk 0:00:02]} 68. Ke5 {[%clk 0:00:20]}  Ra4 {[%clk 0:00:02]} 69. Ke6 {[%clk 0:00:20]}  Ra7 {[%clk 0:00:02]} 70. Bg5 {[%clk 0:00:19]}  Ra4 {[%clk 0:00:02]} 71. d7 {[%clk 0:00:17]}  Ra8 {[%clk 0:00:02]} 72. d8=Q {[%clk 0:00:17]}  Rxd8 {[%clk 0:00:02]} 73. Bxd8 {[%clk 0:00:18]}  Kb7 {[%clk 0:00:03]} 74. Bg5 {[%clk 0:00:18]}  Kc8 {[%clk 0:00:04]} 75. Bf4 {[%clk 0:00:19]} 1-0


[Site "https://www.chess.com"]

[Event "Titled Tuesday Blitz April 18 Early 2023"]
[White "Arat, Ufuk Sezen"]
[Black "Ravi, Teja S."]
[WhiteFideId "6309089"]
[BlackFideId "5017220"]
[WhiteElo "2289"]
[BlackElo "2433"]
[Result "0-1"]
[Round "11"]
[TimeControl "180+2"]
[Date "2023.04.18"]
[WhiteClock "0:01:21"]
[BlackClock "0:01:59"]

1. e4 {[%clk 0:03:00]}  c6 {[%clk 0:03:00]} 2. d4 {[%clk 0:03:00]}  d5 {[%clk 0:03:01]} 3. e5 {[%clk 0:03:01]}  Bf5 {[%clk 0:03:00]} 4. h4 {[%clk 0:03:01]}  h5 {[%clk 0:03:00]} 5. Bd3 {[%clk 0:03:01]}  Bxd3 {[%clk 0:02:59]} 6. Qxd3 {[%clk 0:03:02]}  e6 {[%clk 0:03:00]} 7. Bg5 {[%clk 0:03:02]}  Qb6 {[%clk 0:02:59]} 8. Nd2 {[%clk 0:03:02]}  Be7 {[%clk 0:02:56]} 9. Ngf3 {[%clk 0:03:01]}  Nh6 {[%clk 0:02:56]} 10. Bxe7 {[%clk 0:03:00]}  Kxe7 {[%clk 0:02:57]} 11. c4 {[%clk 0:03:01]}  Nf5 {[%clk 0:02:57]} 12. O-O {[%clk 0:02:59]}  Nd7 {[%clk 0:02:57]} 13. a4 {[%clk 0:02:57]}  a5 {[%clk 0:02:57]} 14. cxd5 {[%clk 0:02:52]}  cxd5 {[%clk 0:02:57]} 15. Rab1 {[%clk 0:02:48]}  Rhc8 {[%clk 0:02:55]} 16. Qa3+ {[%clk 0:02:46]}  Qb4 {[%clk 0:02:55]} 17. Qxb4+ {[%clk 0:02:11]}  axb4 {[%clk 0:02:56]} 18. b3 {[%clk 0:02:12]}  Rc3 {[%clk 0:02:53]} 19. Rfd1 {[%clk 0:02:09]}  Rac8 {[%clk 0:02:54]} 20. Nf1 {[%clk 0:02:06]}  Nb8 {[%clk 0:02:49]} 21. Ng3 {[%clk 0:02:03]}  Nxg3 {[%clk 0:02:48]} 22. fxg3 {[%clk 0:02:03]}  Rc2 {[%clk 0:02:49]} 23. Ne1 {[%clk 0:02:00]}  Re2 {[%clk 0:02:45]} 24. Rbc1 {[%clk 0:02:00]}  Rxc1 {[%clk 0:02:44]} 25. Rxc1 {[%clk 0:02:01]}  Nc6 {[%clk 0:02:45]} 26. Nd3 {[%clk 0:02:01]}  Re3 {[%clk 0:02:37]} 27. Nc5 {[%clk 0:01:58]}  Rc3 {[%clk 0:02:20]} 28. Rb1 {[%clk 0:01:33]}  b6 {[%clk 0:02:14]} 29. Na6 {[%clk 0:01:33]}  Rxg3 {[%clk 0:02:13]} 30. Kf2 {[%clk 0:01:30]}  Rc3 {[%clk 0:02:13]} 31. Ke1 {[%clk 0:01:21]}  Nxd4 {[%clk 0:02:11]} 32. Nxb4 {[%clk 0:01:21]}  Rxb3 {[%clk 0:02:04]} 33. Rxb3 {[%clk 0:01:19]}  Nxb3 {[%clk 0:02:05]} 34. Ke2 {[%clk 0:01:17]}  Nc5 {[%clk 0:02:04]} 35. a5 {[%clk 0:01:17]}  bxa5 {[%clk 0:02:04]} 36. Nc6+ {[%clk 0:01:18]}  Ke8 {[%clk 0:02:04]} 37. Nxa5 {[%clk 0:01:19]}  Nd7 {[%clk 0:02:05]} 38. Nc6 {[%clk 0:01:19]}  f6 {[%clk 0:02:03]} 39. exf6 {[%clk 0:01:19]}  gxf6 {[%clk 0:02:04]} 40. Ke3 {[%clk 0:01:18]}  Kf7 {[%clk 0:02:02]} 41. Kf4 {[%clk 0:01:19]}  Nf8 {[%clk 0:01:58]} 42. g4 {[%clk 0:01:18]}  Ng6+ {[%clk 0:01:58]} 43. Kg3 {[%clk 0:01:19]}  hxg4 {[%clk 0:01:58]} 44. Kxg4 {[%clk 0:01:20]}  Ne5+ {[%clk 0:01:58]} 45. Nxe5+ {[%clk 0:01:15]}  fxe5 {[%clk 0:01:59]} 46. Kg5 {[%clk 0:01:16]}  Kg7 {[%clk 0:01:59]} 47. h5 {[%clk 0:01:17]}  Kh7 {[%clk 0:01:59]} 48. h6 {[%clk 0:01:18]}  e4 {[%clk 0:01:58]} 49. Kg4 {[%clk 0:01:19]}  Kxh6 {[%clk 0:01:59]} 50. Kf4 {[%clk 0:01:20]}  Kg6 {[%clk 0:01:59]} 51. Ke5 {[%clk 0:01:21]}  e3 {[%clk 0:01:59]} 52. Kd4 {[%clk 0:01:21]}  e2 {[%clk 0:01:59]} 0-1


[Site "https://www.chess.com"]

[Event "Titled Tuesday Blitz April 18 Early 2023"]
[White "Martinez Ramirez, Lennis"]
[Black "Movahed, Sina"]
[WhiteFideId "3509079"]
[BlackFideId "42520835"]
[WhiteElo "2410"]
[BlackElo "2225"]
[Result "0-1"]
[Round "11"]
[TimeControl "180+2"]
[Date "2023.04.18"]
[WhiteClock "0:00:23"]
[BlackClock "0:02:00"]

1. e4 {[%clk 0:03:00]}  c5 {[%clk 0:02:58]} 2. Nf3 {[%clk 0:03:00]}  d6 {[%clk 0:02:58]} 3. Bb5+ {[%clk 0:02:59]}  Nd7 {[%clk 0:02:56]} 4. d4 {[%clk 0:02:58]}  cxd4 {[%clk 0:02:57]} 5. Qxd4 {[%clk 0:02:58]}  a6 {[%clk 0:02:56]} 6. Ba4 {[%clk 0:02:54]}  b5 {[%clk 0:02:53]} 7. Bb3 {[%clk 0:02:53]}  Bb7 {[%clk 0:02:52]} 8. Bxf7+ {[%clk 0:02:11]}  Kxf7 {[%clk 0:02:49]} 9. Ng5+ {[%clk 0:02:11]}  Ke8 {[%clk 0:02:48]} 10. Ne6 {[%clk 0:02:11]}  Qb6 {[%clk 0:02:46]} 11. Qxb6 {[%clk 0:01:00]}  Nxb6 {[%clk 0:02:44]} 12. Nc7+ {[%clk 0:01:00]}  Kd7 {[%clk 0:02:44]} 13. Nxa8 {[%clk 0:01:01]}  Nxa8 {[%clk 0:02:40]} 14. f3 {[%clk 0:01:02]}  Nf6 {[%clk 0:02:40]} 15. a4 {[%clk 0:01:01]}  b4 {[%clk 0:02:38]} 16. c3 {[%clk 0:00:59]}  bxc3 {[%clk 0:02:37]} 17. Nxc3 {[%clk 0:01:00]}  e6 {[%clk 0:02:37]} 18. Be3 {[%clk 0:00:50]}  Nc7 {[%clk 0:02:34]} 19. Kf2 {[%clk 0:00:49]}  d5 {[%clk 0:02:34]} 20. Rhd1 {[%clk 0:00:48]}  Bd6 {[%clk 0:02:32]} 21. Rac1 {[%clk 0:00:45]}  Rc8 {[%clk 0:02:30]} 22. g4 {[%clk 0:00:41]}  Rf8 {[%clk 0:02:26]} 23. Ke2 {[%clk 0:00:31]}  h5 {[%clk 0:02:09]} 24. g5 {[%clk 0:00:31]}  Ng8 {[%clk 0:02:08]} 25. h4 {[%clk 0:00:31]}  Ne7 {[%clk 0:02:07]} 26. Bb6 {[%clk 0:00:30]}  Ng6 {[%clk 0:02:04]} 27. exd5 {[%clk 0:00:28]}  Nxd5 {[%clk 0:02:03]} 28. Nxd5 {[%clk 0:00:28]}  Bxd5 {[%clk 0:02:04]} 29. Bf2 {[%clk 0:00:24]}  Bxf3+ {[%clk 0:02:02]} 30. Ke1 {[%clk 0:00:24]}  Bxd1 {[%clk 0:02:03]} 31. Rxd1 {[%clk 0:00:24]}  Ke7 {[%clk 0:02:00]} 32. Rd4 {[%clk 0:00:20]}  Rxf2 {[%clk 0:01:58]} 33. Rxd6 {[%clk 0:00:17]}  Kxd6 {[%clk 0:01:56]} 34. Kxf2 {[%clk 0:00:17]}  Nxh4 {[%clk 0:01:56]} 35. b4 {[%clk 0:00:18]}  Nf5 {[%clk 0:01:56]} 36. b5 {[%clk 0:00:19]}  axb5 {[%clk 0:01:57]} 37. axb5 {[%clk 0:00:19]}  Kc5 {[%clk 0:01:57]} 38. Kf3 {[%clk 0:00:20]}  Kxb5 {[%clk 0:01:57]} 39. Kf4 {[%clk 0:00:21]}  Kc6 {[%clk 0:01:58]} 40. Ke5 {[%clk 0:00:22]}  Kd7 {[%clk 0:01:58]} 41. g6 {[%clk 0:00:22]}  Ke7 {[%clk 0:01:59]} 42. Kf4 {[%clk 0:00:23]}  Kf6 {[%clk 0:02:00]} 0-1


[Site "https://www.chess.com"]